Workbook

Sheet instructions
A1: Spocalc
A2: Spocalc.xls is an Excel workbook I (Damon Rinard) made. It has been updated to work with Excel 2016 my Matt Armbruster. It works like any other Excel workbook. There is no program beyond the built-in brains of Excel, just some formulas that automatically work on the numbers you enter to instantly give you the spoke lengths you need.
A4: Spocalc.xls contains four Excel worksheets: "instructions" (this sheet), "calculator", "hubs" and "rims". Once you've opened spocalc.xlsm in Excel, you can look at any worksheet by clicking on its tab at the bottom of the screen. Instructions on how to use the macros to enter hub and rim data are on the "hubs" and "rims" worksheets.
A6: The "calculator" worksheet is where you enter the rim and hub dimensions and view the results of the calculations. If you click on a cell containing the spoke length, you can view the formulas in the Formula Bar near the top of the worksheet.
A8: The "rims" worksheet is a list of dimensions you can use for rims, or you can measure your own rim and add it to the list if you want.
A10: The "hubs" worksheet is a list of hubs you can choose from, or again, you can measure your own hub and add it to the list if you want.
A12: Here's how to use the Spocalc:
A13: 1. Make sure you enable the macros. (Often Excel prompts you to disable them in case they harbor a virus.) You can enable the macros when you open the file by clicking on the "Enable Macros" button when Excel asks.
A15: 2. On the calculator sheet, click on the "Choose" buttons on the left and Spocalc will take you to the rims or hubs database.
A17: 3. Select the name of the hub or rim you want by clicking on the cell containing its Name.
A19: 4. Click on the appropriate "Select" button to send the data to the calculator worksheet.
A22: This workbook as well as other versions are online at
A23: http://sheldonbrown.com/rinard/spocalc.htm
A25: Please contact sheldonbrown.com if you have additons, corrections, questions or other feedback.
A27: Thank you Sheldon Brown, Doug Milliken, Greg Johnson, Larry Friedman, and Clark Rasmussen for your invaluable help in developing this spreadsheet -- Damon Rinard

Sheet calculator
B1: Spocalc-2022 | D1: http://sheldonbrown.com/rinard/spocalc.htm
B2: Today is | C2: =TODAY() -> 2022-01-28
A3: 1 | B3: Click on "Choose" buttons for hub and rim dimensions. You can also edit or add to those dimensions.
A4: 2 | B4: Enter "N, total number of spokes".
A5: 3 | B5: (Optional) Enter rim and hub dimensions manually by typing them in the yellow "Input" cells (column C).
A6: 4 | B6: (Optional) Enter "X, number of cross". You may enter a decimal value if desired.
A7: 5 | B7: Spoke lengths for various cross patterns are immediately displayed in columns E and F.
A8: 6 | B8: (Optional) Print this page by choosing Print from the File menu.
B10: Front Wheel | C10: Input Data | D10: Output Data | G10: Reference information: | K10: Note:
B11: ="Hub: " &C40 -> Hub: AC APX
B12: ="Rim: "&C41 -> Rim: Ambrosio aero (with washers)
B13: N, total number of spokes | C13: 28 | D13: cross | E13: left length | F13: right length | G13: left bracing angle | H13: right bracing angle | K13: If paired hub spoke holes are 15 degrees apart, then:
B14: ERD, effective rim diameter | C14: 604 | D14: 0 | E14: =SQRT((C$18/2*SIN(2*PI()*D14/(C$13/2)))^2+(C$14/2-((C$18/2)*COS(2*PI()*D14/(C$13/2))))^2+D$22^2)-C$20/2 -> 281.7486928 | F14: =SQRT((C$19/2*SIN(2*PI()*D14/(C13/2)))^2+(C$14/2-((C$19/2)*COS(2*PI()*D14/(C13/2))))^2+D$23^2)-C$20/2 -> 281.7486928 | G14: =CONCATENATE(ROUND(DEGREES(ASIN($D$22/E14))-3.5/2,1)," heads out; ",ROUND(DEGREES(ASIN($D$22/E14))+3.5/2,1), " heads in") -> 5.6 heads out; 9.1 heads in | H14: =CONCATENATE(ROUND(DEGREES(ASIN($D$23/F14))-3.5/2,1)," heads out; ",ROUND(DEGREES(ASIN($D$23/F14))+3.5/2,1), " heads in") -> 5.6 heads out; 9.1 heads in | I14: Tension L/R | K14: For 24 paired spokes laced 2x, enter 2.25 cross.
B15: OSB, offset spoke bed | C15: 0 | D15: 1 | E15: 283.985168 | F15: =SQRT((C$19/2*SIN(2*PI()*D15/(C13/2)))^2+(C$14/2-((C$19/2)*COS(2*PI()*D15/(C13/2))))^2+D$23^2)-C$20/2 -> 283.985168 | G15: =DEGREES(ASIN($D$22/E15)) -> 7.282819889 | H15: =DEGREES(ASIN($D$23/F15)) -> 7.282819889 | I15: =SIN(RADIANS(G15))/SIN(RADIANS(H15)) -> 1 | K15: For 24 paired spokes laced 1x, enter 1.25 cross.
B16: WL, width from center to left flange | C16: 36 | D16: 2 | E16: 290.160239 | F16: =SQRT((C$19/2*SIN(2*PI()*D16/(C13/2)))^2+(C$14/2-((C$19/2)*COS(2*PI()*D16/(C13/2))))^2+D$23^2)-C$20/2 -> 290.160239 | G16: =DEGREES(ASIN($D$22/E16)) -> 7.127016648 | H16: =DEGREES(ASIN($D$23/F16)) -> 7.127016648 | I16: =SIN(RADIANS(G16))/SIN(RADIANS(H16)) -> 1 | K16: For 20 paired spokes laced 2x, enter 2.29 cross.
B17: WR, width from center to right flange | C17: 36 | D17: 3 | E17: 298.859135 | F17: =SQRT((C$19/2*SIN(2*PI()*D17/(C13/2)))^2+(C$14/2-((C$19/2)*COS(2*PI()*D17/(C13/2))))^2+D$23^2)-C$20/2 -> 298.859135 | G17: =DEGREES(ASIN($D$22/E17)) -> 6.918540871 | H17: =DEGREES(ASIN($D$23/F17)) -> 6.918540871 | I17: =SIN(RADIANS(G17))/SIN(RADIANS(H17)) -> 1 | K17: For 20 paired spokes laced 1x, enter 1.29 cross.
B18: dL, left flange diameter | C18: 42.5 | D18: 4 | E18: 308.228058 | F18: =SQRT((C$19/2*SIN(2*PI()*D18/(C13/2)))^2+(C$14/2-((C$19/2)*COS(2*PI()*D18/(C13/2))))^2+D$23^2)-C$20/2 -> 308.228058 | G18: =DEGREES(ASIN($D$22/E18)) -> 6.707263077 | H18: =DEGREES(ASIN($D$23/F18)) -> 6.707263077 | I18: =SIN(RADIANS(G18))/SIN(RADIANS(H18)) -> 1 | K18: For 16 paired spokes laced 1x, enter 1.33 cross.
B19: dR, right flange diameter | C19: 42.5 | D19: =C21 -> 3 | E19: 298.859135 | F19: =SQRT((C$19/2*SIN(2*PI()*D19/(C13/2)))^2+(C$14/2-((C$19/2)*COS(2*PI()*D19/(C13/2))))^2+D$23^2)-C$20/2 -> 298.859135 | G19: =DEGREES(ASIN($D$22/E19)) -> 6.918540871 | H19: =DEGREES(ASIN($D$23/F19)) -> 6.918540871 | I19: =SIN(RADIANS(G19))/SIN(RADIANS(H19)) -> 1
B20: S, spoke hole diameter | C20: 2.6 | K20: If paired hub spoke holes are 20 degrees apart, then:
B21: X, cross number (decimal allowed)(optional) | C21: 3 | K21: For 16 paired spokes laced 1x, enter 1.275 cross.
B22: WL_effective = W + OSB | D22: =C16+C15 -> 36
B23: WR_effective = W - OSB | D23: =C17-C15 -> 36
B25: Rear Wheel | C25: Input Data | D25: Output Data | G25: Reference information:
B26: ="Hub: "&C43 -> Hub: AC APX
B27: ="Rim: "&C44 -> Rim: Ambrosio Crono
B28: N, total number of spokes | C28: 36 | D28: cross | E28: left length | F28: right length | G28: left bracing angle | H28: right bracing angle
B29: ERD, effective rim diameter | C29: 615 | D29: 0 | E29: =SQRT((C$33/2*SIN(2*PI()*D29/(C$28/2)))^2+(C$29/2-((C$33/2)*COS(2*PI()*D29/(C$28/2))))^2+D$37^2)-C$35/2 -> 284.3523236 | F29: =SQRT((C$34/2*SIN(2*PI()*D29/(C$28/2)))^2+(C$29/2-((C$34/2)*COS(2*PI()*D29/(C$28/2))))^2+D$38^2)-C$35/2 -> 282.9045918 | G29: =CONCATENATE(ROUND(DEGREES(ASIN($D$37/E29))-3.5/2,1)," heads out; ",ROUND(DEGREES(ASIN($D$37/E29))+3.5/2,1), " heads in") -> 5.3 heads out; 8.8 heads in | H29: =CONCATENATE(ROUND(DEGREES(ASIN($D$38/F29))-3.5/2,1)," heads out; ",ROUND(DEGREES(ASIN($D$38/F29))+3.5/2,1), " heads in") -> 2.3 heads out; 5.8 heads in | I29: Tension R/L | K29: Tension ratio calc | L29: Input | M29: Output
B30: OSB, offset spoke bed | C30: 0 | D30: 1 | E30: 285.9061749 | F30: 284.4663152 | G30: =DEGREES(ASIN($D$37/E30)) -> 7.031660317 | H30: =DEGREES(ASIN($D$38/F30)) -> 4.031625873 | I30: =SIN(RADIANS(H30))/SIN(RADIANS(G30)) -> 0.5743209243 | K30: left bracing angle | L30: 6.5
B31: WL, width from center to left flange | C31: 35 | D31: 2 | E31: 290.3340755 | F31: 288.916185 | G31: =DEGREES(ASIN($D$37/E31)) -> 6.923890859 | H31: =DEGREES(ASIN($D$38/F31)) -> 3.969430695 | I31: =SIN(RADIANS(H31))/SIN(RADIANS(G31)) -> 0.5742329252 | K31: right bracing angle | L31: 4.6
B32: WR, width from center to right flange | C32: 20 | D32: 3 | E32: 296.9905463 | F32: 295.6044459 | G32: =DEGREES(ASIN($D$37/E32)) -> 6.767970906 | H32: =DEGREES(ASIN($D$38/F32)) -> 3.879480399 | I32: =SIN(RADIANS(H32))/SIN(RADIANS(G32)) -> 0.5741080215 | K32: Tension L/R | M32: =SIN(RADIANS(L31))/SIN(RADIANS(L30)) -> 0.7084509499
B33: dL, left flange diameter | C33: 48 | D33: 4 | E33: 304.9583924 | F33: 303.6085156 | G33: =DEGREES(ASIN($D$37/E33)) -> 6.590345057 | H33: =DEGREES(ASIN($D$38/F33)) -> 3.777054736 | I33: =SIN(RADIANS(H33))/SIN(RADIANS(G33)) -> 0.5739692055
B34: dR, right flange diameter | C34: 48 | D34: =C36 -> 3 | E34: 296.9905463 | F34: 295.6044459 | G34: =DEGREES(ASIN($D$37/E34)) -> 6.767970906 | H34: =DEGREES(ASIN($D$38/F34)) -> 3.879480399 | I34: =SIN(RADIANS(H34))/SIN(RADIANS(G34)) -> 0.5741080215
B35: S, spoke hole diameter | C35: 2.6
B36: X, cross number (decimal allowed)(optional) | C36: 3
B37: WL_effective = W - OSB | D37: =C31-C30 -> 35
B38: WR_effective = W + OSB | D38: =C32+C30 -> 20
B40: Front hub is | C40: AC APX
B41: Front rim is | C41: Ambrosio aero (with washers)
B43: Rear hub is | C43: AC APX
B44: Rear rim is | C44: Ambrosio Crono
B46: Notes:

Sheet rims
A1: ERD is the Effective Rim Diameter.
A2: ERD is measured to the end of the spoke, usually flush with the head of the nipple. | G2: OSB = (W/2) - L
A3: OSB is the lateral spoke bed offset (from wheel center). Non-zero for asymmetric rims.
A4: size is the nominal size of the wheel, and usually does not correspond to any particular dimension.
A5: ISO is the diameter of the bead seat of the rim, in millimeters.
A6: (See http://www.sheldonbrown.com/tire_sizing.html for more on ISO dimension.)
A8: ERD | B8: OSB, mm | C8: size | D8: ISO, mm | F8: date | G8: by
A9: 604 | B9: 0 | C9: 700C | D9: tubular | E9: Ambrosio aero (with washers)
A10: 615 | B10: 0 | C10: 700C | D10: tubular | E10: Ambrosio Crono
A11: 601.5 | B11: 0 | C11: 700C | D11: tubular | E11: Ambrosio Excellence | F11: 2006-11-20 | G11: http://groups.google.com/group/rec.bicycles.tech/msg/0909c0f61e83da38
A12: 618 | B12: 0 | C12: 700C | D12: tubular | E12: Ambrosio Formula 20 Crono - MEASURE TO BE SURE
A13: 610 | B13: 0 | C13: 700C | D13: tubular | E13: Ambrosio Crono F.20 - MEASURE TO BE SURE | F13: 2006-11-20 | G13: http://groups.google.com/group/rec.bicycles.tech/msg/0909c0f61e83da38
A14: 618 | B14: 0 | C14: 700C | D14: tubular | E14: Ambrosio Metamorphosis
A15: 618 | B15: 0 | C15: 700C | D15: tubular | E15: Ambrosio Montreal - MEASURE TO BE SURE!
A16: 610.5 | B16: 0 | C16: 700C | D16: tubular | E16: Ambrosio Montreal - MEASURE TO BE SURE! | F16: 2006-11-20 | G16: http://groups.google.com/group/rec.bicycles.tech/msg/0909c0f61e83da38
A17: 617 | B17: 0 | C17: 700C | D17: tubular | E17: Ambrosio Nemesis
A18: 610.5 | B18: 0 | C18: 700C | D18: tubular | E18: Ambrosio Nemesis 2000 | F18: 2006-11-20 | G18: http://groups.google.com/group/rec.bicycles.tech/msg/0909c0f61e83da38
A19: 618 | B19: 0 | C19: 700C | D19: tubular | E19: Ambrosio Synthesis
A20: 594 | B20: 0 | C20: 700C | D20: tubular | E20: Ambrosio Thesis | F20: 2006-11-20 | G20: http://groups.google.com/group/rec.bicycles.tech/msg/0909c0f61e83da38
A21: 605 | B21: 0 | C21: 700C | D21: tubular | E21: Ambrosio Tour de France | F21: 2006-11-20 | G21: http://groups.google.com/group/rec.bicycles.tech/msg/0909c0f61e83da38
A22: 567 | B22: 0 | C22: 700C | D22: tubular | E22: American Classic carbon fiber V rim
A23: 618 | B23: 0 | C23: 700C | D23: tubular | E23: Araya 16B Gold
A24: 618 | B24: 0 | C24: 700C | D24: tubular | E24: Araya 16B Red
A25: 618 | B25: 0 | C25: 700C | D25: tubular | E25: Araya 16BGOLDNEW track, classic tub, 335g | F25: 2001-12-30 | G25: http://www.araya-kk.co.jp/rim/catalog/main.html
A26: 609 | B26: 0 | C26: 700C | D26: tubular | E26: Araya ADX-1
A27: 607 | B27: 0 | C27: 700C | D27: tubular | E27: Araya ADX-2
A28: 611 | B28: 0 | C28: 700C | D28: tubular | E28: Araya ADX-4
A29: 611 | B29: 0 | C29: 700C | D29: tubular | E29: Araya ADX-5
A30: 606.3 | B30: 0 | C30: 700C | D30: tubular | E30: Araya NEWADX-1S | F30: 2001-12-30 | G30: http://www.araya-kk.co.jp/rim/catalog/main.html
A31: 619 | B31: 0 | C31: 700C | D31: tubular | E31: Araya Pro Staff 340
A32: 619 | B32: 0 | C32: 700C | D32: tubular | E32: Araya Pro Staff 400
A33: 618 | B33: 0 | C33: 700C | D33: tubular | E33: Araya R-50, classic tub, 415g | F33: 2001-12-30 | G33: http://www.araya-kk.co.jp/rim/catalog/main.html
A34: 581.4 | B34: 0 | C34: 700C | D34: tubular | E34: Araya SA-230S Super Aero (30mm deep) | F34: 2001-12-30 | G34: http://www.araya-kk.co.jp/rim/catalog/main.html
A35: 618 | B35: 0 | C35: 700C | D35: tubular | E35: Araya Tita-Ace
A36: =592+3 -> 595 | B36: 0 | C36: 700C | D36: tubular | E36: Bontrager PN 220042 Race X-Lite alu | F36: 2002-03-07 | G36: DGR
A37: =557+30 -> 587 | B37: 0 | C37: 700C | D37: tubular | E37: Bontrager PN 221065 Race X-Lite OCLV Carbon Aero | F37: 2002-02-18 | G37: dcg
A38: =595+3 -> 598 | B38: 1.5 | C38: 700C | D38: tubular | E38: Bontrager PN 221636 Race X-Lite alu OSB | F38: 2002-03-07 | G38: DGR
A39: =592+3 -> 595 | B39: 0 | C39: 700C | D39: tubular | E39: Bontrager PN 231573 Race X-Lite alu, new wider rim | F39: 2002-06-05 | G39: DGR
A40: =595+3 -> 598 | B40: 1.5 | C40: 700C | D40: tubular | E40: Bontrager PN 231574 Race X-Lite alu OSB, new wider rim | F40: 2002-06-05 | G40: DGR
A41: 616 | B41: 0 | C41: 700C | D41: tubular | E41: Campagnolo Barcelona '92 (12mm tall)
A42: 609 | B42: 0 | C42: 700C | D42: tubular | E42: Campagnolo Barcelona '92 (15mm tall) | F42: 2006-12-02 | G42: Knoch, Andreas <A.Knoch@FAZ-INSTITUT.DE>
A43: 617 | B43: 0 | C43: 700C | D43: tubular | E43: Campagnolo Delta (box section)
A44: 617 | B44: 0 | C44: 700C | D44: tubular | E44: Campagnolo Lambda (box section)
A45: 615 | B45: 0 | C45: 700C | D45: tubular | E45: Campagnolo Los Angeles '84
A46: 617 | B46: 0 | C46: 700C | D46: tubular | E46: Campagnolo Omega (box section)
A47: 617 | B47: 0 | C47: 700C | D47: tubular | E47: Campagnolo Record (box section)
A48: 602 | B48: 0 | C48: 700C | D48: tubular | E48: Campagnolo Seoul '88
A49: 617 | B49: 0 | C49: 700C | D49: tubular | E49: Campagnolo Sigma (box section)
A50: 616 | B50: 0 | C50: 700C | D50: tubular | E50: Campagnolo strada
A51: 603 | B51: 0 | C51: 700C | D51: tubular | E51: Campagnolo V profile
A52: 617 | B52: 0 | C52: 700C | D52: tubular | E52: Campagnolo Victory (box section)
A53: 617 | B53: 0 | C53: 700C | D53: tubular | E53: Fiamme Ergal (Yellow Label)
A54: 617 | B54: 0 | C54: 700C | D54: tubular | E54: Fiamme Ergal-Iride
A55: 615 | B55: 0 | C55: 700C | D55: tubular | E55: Fiamme Hard Silver
A56: 617 | B56: 0 | C56: 700C | D56: tubular | E56: Fiamme Master
A57: 617 | B57: 0 | C57: 700C | D57: tubular | E57: Fiamme Red Label
A58: 617 | B58: 0 | C58: 700C | D58: tubular | E58: Fiamme Speedy (track)
A59: 615 | B59: 0 | C59: 700C | D59: tubular | E59: Fiamme Super Corsa
A60: 617 | B60: 0 | C60: 700C | D60: tubular | E60: FiR Alkor
A61: 562 | B61: 0 | C61: 700C | D61: tubular | E61: FiR Antara 2000
A62: 617 | B62: 0 | C62: 700C | D62: tubular | E62: FiR Isidis
A63: 617 | B63: 0 | C63: 700C | D63: tubular | E63: FiR Pulsar
A64: 617 | B64: 0 | C64: 700C | D64: tubular | E64: FiR Quasar
A65: 617 | B65: 0 | C65: 700C | D65: tubular | E65: FiR Sirus
A66: 616 | B66: 0 | C66: 700C | D66: tubular | E66: FiR ST120 (400g)
A67: 616 | B67: 0 | C67: 700C | D67: tubular | E67: FiR ST120L (340g)
A68: 572 | B68: 0 | C68: 700C | D68: tubular | E68: LEW Composite | G68: www.bicycleracewheels.com
A69: 611 | B69: 0 | C69: 700C | D69: tubular | E69: Matrix Iso
A70: 615 | B70: 0 | C70: 700C | D70: tubular | E70: Mavic Argent 10
A71: 616 | B71: 0 | C71: 700C | D71: tubular | E71: Mavic Argent 12 SSC
A72: 615 | B72: 0 | C72: 700C | D72: tubular | E72: Mavic Argent 7
A73: 615 | B73: 0 | C73: 700C | D73: tubular | E73: Mavic Argent 8
A74: 616 | B74: 0 | C74: 700C | D74: tubular | E74: Mavic Bleu SSC
A75: 616 | B75: 0 | C75: 700C | D75: tubular | E75: Mavic CX18
A76: =584+3 -> 587 | B76: 0 | C76: 700C | D76: tubular | E76: Mavic CXP30 (ERD is Mavic's Nipple Seat Dia + 3mm for nipples) | F76: 2001-12-10 | G76: Mavic OEM brochure
A77: 615 | B77: 0 | C77: 700C | D77: tubular | E77: Mavic GEL280
A78: 615 | B78: 0 | C78: 700C | D78: tubular | E78: Mavic GL330
A79: =609+3 -> 612 | B79: 0 | C79: 700C | D79: tubular | E79: Mavic GP4 new angular (ERD is Mavic's Nipple Seat Dia + 3mm for nipples) | F79: 2001-12-10 | G79: Mavic OEM brochure
A80: 615 | B80: 0 | C80: 700C | D80: tubular | E80: Mavic GP4 old rounder
A81: 604 | B81: 0 | C81: 700C | D81: tubular | E81: Mavic Mach 2CD2
A82: 603 | B82: 0 | C82: 700C | D82: tubular | E82: Mavic Mach2
A83: 616 | B83: 0 | C83: 700C | D83: tubular | E83: Mavic Montlhery Pro
A84: 615 | B84: 0 | C84: 700C | D84: tubular | E84: Mavic OR7
A85: =612+3 -> 615 | B85: 0 | C85: 700C | D85: tubular | E85: Mavic Paris Roubaix SSC (ERD is Mavic's Nipple Seat Dia + 3mm for nipples) | F85: 2001-12-10 | G85: Mavic OEM brochure
A86: 617 | B86: 0 | C86: 700C | D86: tubular | E86: Mavic Piste (track)
A87: 613 | B87: 0 | C87: 700C | D87: tubular | E87: Mavic Reflex -- MEASURE TO BE SURE!!!
A88: 616 | B88: 0 | C88: 700C | D88: tubular | E88: Mavic Reflex -- MEASURE TO BE SURE!!!
A89: 613 | B89: 0 | C89: 700C | D89: tubular | E89: Mavic Reflex -- MEASURE TO BE SURE!!!
A90: 616 | B90: 0 | C90: 700C | D90: tubular | E90: Mavic Reflex -- MEASURE TO BE SURE!!!
A91: 613 | B91: 0 | C91: 700C | D91: tubular | E91: Mavic Reflex -- MEASURE TO BE SURE!!!
A92: 616 | B92: 0 | C92: 700C | D92: tubular | E92: Mavic Reflex -- MEASURE TO BE SURE!!!
A93: 617 | B93: 0 | C93: 700C | D93: tubular | E93: Nisi AN-85
A94: 617 | B94: 0 | C94: 700C | D94: tubular | E94: Nisi Countach
A95: 618 | B95: 0 | C95: 700C | D95: tubular | E95: Nisi G-27
A96: 618 | B96: 0 | C96: 700C | D96: tubular | E96: Nisi Sludi Mod 290
A97: 618 | B97: 0 | C97: 700C | D97: tubular | E97: Nisi Sludi Mod 320
A98: 617 | B98: 0 | C98: 700C | D98: tubular | E98: Nisi Solidal
A99: 603 | B99: 0 | C99: 700C | D99: tubular | E99: Performance A19T
A100: 608.1 | B100: 0 | C100: 700C | D100: tubular | E100: Rolf Vector Pro, Araya made. For Greer internal nipples + 4mm washers | F100: 2002-03-03 | G100: DGR
A101: 603.7 | B101: 0 | C101: 700C | D101: tubular | E101: Rolf Vector Pro, Trek made. For Greer internal nipples, no washers | F101: 2002-03-03 | G101: DGR
A102: 608 | B102: 0 | C102: 700C | D102: tubular | E102: Saavedra aero
A103: 618 | B103: 0 | C103: 700C | D103: tubular | E103: Saturae: All greay anodized models
A104: 556 | B104: 0 | C104: 700C | D104: tubular | E104: Sun Buzz Road (carbon, alu brake track)
A105: 556 | B105: 0 | C105: 700C | D105: tubular | E105: Sun Buzz Special Event (carbon, no brake track)
A106: 613 | B106: 0 | C106: 700C | D106: tubular | E106: Sun M17A (tubular)
A107: 604 | B107: 0 | C107: 700C | D107: tubular | E107: Sun M19A
A108: 602 | B108: 0 | C108: 700C | D108: tubular | E108: Sun M19AII (632 mm OD)
A109: 614 | B109: 0 | C109: 700C | D109: tubular | E109: Sun M20B
A110: 602 | B110: 0 | C110: 700C | D110: tubular | E110: Velocity Escape 19mm x 19mm
A111: 582 | B111: 0 | C111: 700C | D111: tubular | E111: Velocity Pro/Elite
A112: 614 | B112: 0 | C112: 700C | D112: tubular | E112: Wolber Aspin
A113: 611 | B113: 0 | C113: 700C | D113: tubular | E113: Wolber Profil 18
A114: 600 | B114: 0 | C114: 700C | D114: tubular | E114: Wolber Profil 20
A115: 608 | B115: 0 | C115: 700C | D115: tubular | E115: Wolber Profil A
A116: 616 | B116: 0 | C116: 700C | D116: tubular | E116: Wolber/Super Champion Arc-en-ciel
A117: 616 | B117: 0 | C117: 700C | D117: tubular | E117: Wolber/Super Champion Aspin
A118: 616 | B118: 0 | C118: 700C | D118: tubular | E118: Wolber/Super Champion Aubisque
A119: 616 | B119: 0 | C119: 700C | D119: tubular | E119: Wolber/Super Champion Competition
A120: 616 | B120: 0 | C120: 700C | D120: tubular | E120: Wolber/Super Champion Medaile d'Or
A121: 614 | B121: 0 | C121: 700C | D121: tubular | E121: Zipp 140 12mm deep box section aluminum tubular
A122: 596 | B122: 0 | C122: 700C | D122: tubular | E122: Zipp 250 24.8mm deep carbon tubular | F122: 2005-06-16 | G122: Zipp
A123: 569 | B123: 0 | C123: 700C | D123: tubular | E123: Zipp 280 38mm deep carbon tubular | F123: 2005-06-17 | G123: Kuthan.Kan@egco.com
A124: 566 | B124: 0 | C124: 700C | D124: tubular | E124: Zipp 340 38mm deep carbon tubular
A125: 530 | B125: 0 | C125: 700C | D125: tubular | E125: Zipp 360 58mm deep carbon tubular | F125: 2005-06-17 | G125: Kuthan.Kan@egco.com
A126: 484 | B126: 0 | C126: 700C | D126: tubular | E126: Zipp 420 82mm deep carbon tubular | F126: 2005-06-17 | G126: Kuthan.Kan@egco.com
A127: 530 | B127: 0 | C127: 700C | D127: tubular | E127: Zipp 440 58mm deep carbon tubular
A128: 532 | B128: 0 | C128: 650C | D128: tubular | E128: Accel
A129: 559 | B129: 0 | C129: 650C | D129: tubular | E129: Ambrosio Crono F.20 - MEASURE TO BE SURE | F129: 2006-11-20 | G129: http://groups.google.com/group/rec.bicycles.tech/msg/0909c0f61e83da38
A130: 560 | B130: 0 | C130: 650C | D130: tubular | E130: Ambrosio Montreal - MEASURE TO BE SURE! | F130: 2006-11-20 | G130: http://groups.google.com/group/rec.bicycles.tech/msg/0909c0f61e83da38
A131: 520 | B131: 0 | C131: 650C | D131: tubular | E131: American Classic carbon fiber V rim
A132: 558 | B132: 0 | C132: 650C | D132: tubular | E132: Araya ADX-4
A133: 553.3 | B133: 0 | C133: 650C | D133: tubular | E133: Araya NEWADX-1S | F133: 2001-12-30 | G133: http://www.araya-kk.co.jp/rim/catalog/main.html
A134: 563.4 | B134: 0 | C134: 650C | D134: tubular | E134: Araya R-50 | F134: 2001-12-30 | G134: http://www.araya-kk.co.jp/rim/catalog/main.html
A135: 530 | B135: 0 | C135: 650C | D135: tubular | E135: Araya SA-230S Super Aero (30mm deep) | F135: 2001-12-30 | G135: http://www.araya-kk.co.jp/rim/catalog/main.html
A136: 568 | B136: 0 | C136: 650C | D136: tubular | E136: Campagnolo strada
A137: 565 | B137: 0 | C137: 650C | D137: tubular | E137: FiR Alkor | G137: Mark Hoskin, FiRUSA@aol.com
A138: 511 | B138: 0 | C138: 650C | D138: tubular | E138: FiR Antara 2000
A139: 522 | B139: 0 | C139: 650C | D139: tubular | E139: LEW Composite | G139: www.lew-usa.com
A140: 577 | B140: 0 | C140: 650C | D140: tubular | E140: Mavic CX18
A141: 576 | B141: 0 | C141: 650C | D141: tubular | E141: Mavic GL330
A142: 563 | B142: 0 | C142: 650C | D142: tubular | E142: Mavic Mach 2
A143: 557 | B143: 0 | C143: 650C | D143: tubular | E143: Mavic Mach 2CD2
A144: 530.4 | B144: 0 | C144: 650C | D144: tubular | E144: Rolf Vector Carbon, Lew made. For Greer internal nipples + 2.5mm washers | F144: 2002-05-06 | G144: DGR
A145: 553 | B145: 0 | C145: 650C | D145: tubular | E145: Rolf Vector Pro, Araya made. For Greer internal nipples + 4mm washers | F145: 2002-03-03 | G145: DGR
A146: 553 | B146: 0 | C146: 650C | D146: tubular | E146: Rolf Vector Pro, Trek made. For Greer internal nipples, no washers | F146: 2002-03-03 | G146: DGR
A147: 558 | B147: 0 | C147: 650C | D147: tubular | E147: Saavedra aero
A148: 507 | B148: 0 | C148: 650C | D148: tubular | E148: Sun Buzz Road (carbon, alu brake track)
A149: 507 | B149: 0 | C149: 650C | D149: tubular | E149: Sun Buzz Special Event (carbon, no brake track)
A150: 560 | B150: 0 | C150: 650C | D150: tubular | E150: Sun M17A (582 mm OD)
A151: 552 | B151: 0 | C151: 650C | D151: tubular | E151: Sun M19A, M19AII (582 mm OD)
A152: 560 | B152: 0 | C152: 650C | D152: tubular | E152: Sun M20B (582 mm OD)
A153: 554 | B153: 0 | C153: 650C | D153: tubular | E153: Velocity Escape 19mm x 19mm
A154: 531 | B154: 0 | C154: 650C | D154: tubular | E154: Velocity Pro/Elite
A155: 558 | B155: 0 | C155: 650C | D155: tubular | E155: Wolber Profil 18
A156: 550 | B156: 0 | C156: 650C | D156: tubular | E156: Wolber Profil 20
A157: 521 | B157: 0 | C157: 650C | D157: tubular | E157: Zipp 245 38mm deep carbon tubular | F157: 2005-11-05 | G157: Kuthan.Kan@egco.com
A158: 520 | B158: 0 | C158: 650C | D158: tubular | E158: Zipp 310 38mm deep carbon tubular
A159: 484 | B159: 0 | C159: 650C | D159: tubular | E159: Zipp 330 58mm deep carbon tubular | F159: 2005-11-05 | G159: Kuthan.Kan@egco.com
A160: 482 | B160: 0 | C160: 650C | D160: tubular | E160: Zipp 400 58mm deep carbon tubular
A161: =24.5*25.4 -> 622.3 | B161: 0 | C161: 28" | D161: tubular | E161: Wood, unknown make, vintage 1900 or so.
A162: 481 | B162: 0 | C162: 24" | D162: tubular | E162: Accel
A163: 506 | B163: 0 | C163: 24" | D163: tubular | E163: Araya ADX-4
A164: 503.2 | B164: 0 | C164: 24" | D164: tubular | E164: Araya NEWADX-1S | F164: 2001-12-30 | G164: http://www.araya-kk.co.jp/rim/catalog/main.html
A165: 478.2 | B165: 0 | C165: 24" | D165: tubular | E165: Araya SA-230S Super Aero (30mm deep) | F165: 2001-12-30 | G165: http://www.araya-kk.co.jp/rim/catalog/main.html
A166: 517 | B166: 0 | C166: 24" | D166: tubular | E166: Mavic CX18
A167: 517 | B167: 0 | C167: 24" | D167: tubular | E167: Mavic GL330
A168: 504 | B168: 0 | C168: 24" | D168: tubular | E168: Mavic Mach 2
A169: 509 | B169: 0 | C169: 24" | D169: tubular | E169: Sun M17A (MEASURE TO BE SURE!)
A170: 512 | B170: 0 | C170: 24" | D170: tubular | E170: Sun M17A (MEASURE TO BE SURE!)
A171: 509 | B171: 0 | C171: 24" | D171: tubular | E171: Sun M17A (MEASURE TO BE SURE!)
A172: 512 | B172: 0 | C172: 24" | D172: tubular | E172: Sun M17A (MEASURE TO BE SURE!)
A173: 509 | B173: 0 | C173: 24" | D173: tubular | E173: Sun M17A (MEASURE TO BE SURE!)
A174: 512 | B174: 0 | C174: 24" | D174: tubular | E174: Sun M17A (MEASURE TO BE SURE!)
A175: 502 | B175: 0 | C175: 24" | D175: tubular | E175: Sun M19A
A176: 503 | B176: 0 | C176: 24" | D176: tubular | E176: Sun M19AII (532 mm OD)
A177: 511 | B177: 0 | C177: 24" | D177: tubular | E177: Wolber Profil 18
A178: 409 | B178: 0 | C178: 20" | D178: tubular | E178: Araya NEWADX-1S | F178: 2001-12-30 | G178: http://www.araya-kk.co.jp/rim/catalog/main.html
A179: 411 | B179: 0 | C179: 20" | D179: tubular | E179: Sun M17A (MEASURE TO BE SURE!)
A180: 441 | B180: 0 | C180: 20" | D180: tubular | E180: Sun M17A (MEASURE TO BE SURE!)
A181: 411 | B181: 0 | C181: 20" | D181: tubular | E181: Sun M17A (MEASURE TO BE SURE!)
A182: 441 | B182: 0 | C182: 20" | D182: tubular | E182: Sun M17A (MEASURE TO BE SURE!)
A183: 411 | B183: 0 | C183: 20" | D183: tubular | E183: Sun M17A (MEASURE TO BE SURE!)
A184: 441 | B184: 0 | C184: 20" | D184: tubular | E184: Sun M17A (MEASURE TO BE SURE!)
A185: 402 | B185: 0 | C185: 20" | D185: tubular | E185: Sun M19A, M19AII (432 mm OD)
A186: 352 | B186: 0 | C186: 18" | D186: tubular | E186: Sun M19A, M19AII (382 mm OD)
A187: 298 | B187: 0 | C187: 16" | D187: tubular | E187: Sun M19A, M19AII (331 mm OD)
A188: 611 | B188: 0 | C188: 27" | D188: 630 | E188: Ambrosio Aero Elite (rim washers)
A189: 620 | B189: 0 | C189: 27" | D189: 630 | E189: Ambrosio Elite (single eyelets)
A190: 623 | B190: 0 | C190: 27" | D190: 630 | E190: Araya 16A(3)
A191: 622 | B191: 0 | C191: 27" | D191: 630 | E191: Araya 16A(5)
A192: 618 | B192: 0 | C192: 27" | D192: 630 | E192: Araya 20A
A193: 617 | B193: 0 | C193: 27" | D193: 630 | E193: Araya ADX-1W
A194: 610 | B194: 0 | C194: 27" | D194: 630 | E194: Araya ADX-2W
A195: 616.4 | B195: 0 | C195: 27" | D195: 630 | E195: Araya LP-60 | F195: 2001-12-30 | G195: http://www.araya-kk.co.jp/rim/catalog/main.html
A196: 622 | B196: 0 | C196: 27" | D196: 630 | E196: Araya SP-30
A197: 618 | B197: 0 | C197: 27" | D197: 630 | E197: Araya SS-40
A198: 621 | B198: 0 | C198: 27" | D198: 630 | E198: Araya SS-45
A199: 616.4 | B199: 0 | C199: 27" | D199: 630 | E199: Araya TF-110 | F199: 2001-12-30 | G199: http://www.araya-kk.co.jp/rim/catalog/main.html
A200: 618.4 | B200: 0 | C200: 27" | D200: 630 | E200: Araya W/O-2 steel | F200: 2001-12-30 | G200: http://www.araya-kk.co.jp/rim/catalog/main.html
A201: 623 | B201: 0 | C201: 27" | D201: 630 | E201: Dunlop Special Lightweight | F201: 2007-02-11 | G201: "Sheldon Brown" <CaptBike@sheldonbrown.com>
... 806 more rows

Sheet hubs
A1: S is the Spoke hole diameter, usually 2.4mm.
A2: d is the diameter of the circle through the centers of the spoke holes.
A3: W is the hub width from the center of the wheel to the center of the flange.
A4: F/R indicates whether the hub is for a front or rear wheel.
A5: OLD is the Over Lock Nut dimension, or frame spacing.
A6: cogs is the number of cogs the hub accepts.
B8: Left Flange | D8: Right Flange
A9: S, mm | B9: dL, mm | C9: WL, mm | D9: dR, mm | E9: WR, mm | F9: F/R | G9: cogs | H9: OLD, mm | I9: Hub | J9: date | K9: by
A10: 2.6 | B10: 42.5 | C10: 36 | D10: 42.5 | E10: 36 | F10: F | H10: 100 | I10: AC APX | J10: 2001-12-28 | K10: www.dtswiss.com
A11: 2.6 | B11: 48 | C11: 35 | D11: 48 | E11: 20 | F11: R | H11: 135 | I11: AC APX | J11: 2001-12-29 | K11: www.dtswiss.com
A12: 2.4 | B12: 42 | C12: 38.5 | D12: 42 | E12: 18.5 | F12: R | G12: 6,7 | H12: 126 | I12: American Classic
A13: 2.4 | B13: 42 | C13: 41 | D13: 42 | E13: 16 | F13: R | G13: 8 | H13: 130 | I13: American Classic
A14: 2.4 | B14: 42 | C14: 36.5 | D14: 42 | E14: 20.5 | F14: R | G14: 6,7 | H14: 130 | I14: American Classic
A15: 2.4 | B15: 42 | C15: 39 | D15: 42 | E15: 18 | F15: R | G15: 8 | H15: 135 | I15: American Classic
A16: 2.4 | B16: 42 | C16: 34 | D16: 42 | E16: 23 | F16: R | G16: 6,7 | H16: 135 | I16: American Classic
A17: 2.4 | B17: 42 | C17: 36.5 | D17: 42 | E17: 20.5 | F17: R | G17: 8 | H17: 140 | I17: American Classic
A18: 2.6 | B18: 56.5 | C18: 23 | D18: 56.5 | E18: 36 | F18: F | H18: 100 | I18: American Classic HD-140 disc | J18: 2001-12-29 | K18: www.amclassic.com
A19: 2.6 | B19: 66.2 | C19: 29 | D19: 66.2 | E19: 19 | F19: R | G19: 8,9 | H19: 135 | I19: American Classic HD-240 Ultra-Light, 135mm Disk | J19: 2001-12-29 | K19: www.amclassic.com
A20: 2.6 | B20: 47 | C20: 36 | D20: 47 | E20: 36 | F20: F | H20: 100 | I20: American Classic HH-120 suspension | J20: 2003-04-17 | K20: www.amclassic.com
A21: 2.6 | B21: 30 | C21: 33.5 | D21: 30 | E21: 33.5 | F21: F | H21: 100 | I21: American Classic Micro, newer wider version | J21: 2001-12-29 | K21: www.amclassic.com
A22: 2.4 | B22: 30 | C22: 25 | D22: 30 | E22: 25 | F22: F | H22: 100 | I22: American Classic Speedster, older narrow version | K22: www.amclassic.com
A23: 2.4 | B23: 47 | C23: 36 | D23: 47 | E23: 36 | F23: F | H23: 100 | I23: American Classic Suspension small flange | K23: www.amclassic.com
A24: 2.6 | B24: 42 | C24: 34.5 | D24: 42 | E24: 34.5 | F24: F | H24: 100 | I24: American Classic track | J24: 2001-12-29 | K24: www.amclassic.com
A25: 2.6 | B25: 42 | C25: 30.5 | D25: 42 | E25: 30.5 | F25: R | G25: 1 | H25: 121 | I25: American Classic track | J25: 2001-12-29 | K25: www.amclassic.com
A26: 2.4 | B26: 66.2 | C26: 31 | D26: 66.2 | E26: 17 | F26: R | G26: 8,9 | H26: 130 | I26: American Classic Ultra-Light, 130mm | K26: www.amclassic.com
A27: 2.4 | B27: 66.2 | C27: 29 | D27: 66.2 | E27: 19 | F27: R | G27: 8,9 | H27: 135 | I27: American Classic Ultra-Light, 135mm | K27: www.amclassic.com
A28: 2.4 | B28: 42 | C28: 29 | D28: 42 | E28: 19 | F28: R | G28: 8,9 | H28: 135 | I28: American Classic Ultra-Light, CHECK DIAMETER! | J28: 2005-10-10 | K28: OKVELO@aol.com
A29: 2.6 | B29: 45 | C29: 35 | D29: 45 | E29: 20 | F29: R | H29: 135 | I29: Ariel | J29: 2001-12-29 | K29: www.dtswiss.com
A30: 2.6 | B30: 45 | C30: 32 | D30: 45 | E30: 19 | F30: R | H30: 135 | I30: Bees | J30: 2001-12-29 | K30: www.dtswiss.com
A31: 2.4 | B31: 62.2 | C31: 20.2 | D31: 45.3 | E31: 38.2 | F31: F | H31: 100 | I31: BikeE 16 hole disc hub | J31: 2003-05-23 | K31: Brian McDaniel <bambooland@earthlink.net>
A32: 2.5 | B32: 38 | C32: 34.1 | D32: 38 | E32: 34.1 | F32: F | H32: 100 | I32: Bontrager ATB PN 200128 Superstock | J32: 2002-02-14 | K32: dcg
A33: 2.5 | B33: 45 | C33: 33.3 | D33: 45 | E33: 20.3 | F33: R | H33: 135 | I33: Bontrager ATB PN 200129 Superstock | J33: 2002-02-14 | K33: dcg
A34: 2.5 | B34: 38 | C34: 34.95 | D34: 38 | E34: 35 | F34: F | H34: 100 | I34: Bontrager ATB PN 200171 Race by Formula (semi-sealed bearings) | J34: 2002-02-22 | K34: DGR
A35: 2.5 | B35: 45 | C35: 38.7 | D35: 45 | E35: 20.3 | F35: R | H35: 135 | I35: Bontrager ATB PN 210240 Race | J35: 2002-02-14 | K35: dcg
A36: 2.5 | B36: 58 | C36: 23.25 | D36: 45 | E36: 35.25 | F36: F | H36: 100 | I36: Bontrager ATB PN 210248 Race Mod Disc by DT Swiss (Onyx) | J36: 2002-02-26 | K36: DGR
A37: 2.5 | B37: 58 | C37: 33.75 | D37: 58 | E37: 20.35 | F37: R | H37: 135 | I37: Bontrager ATB PN 210249 Race Mod Disc by DT Swiss (Onyx) | J37: 2002-02-19 | K37: DGR
A38: 2.5 | B38: 58 | C38: 22.4 | D38: 58 | E38: 32.5 | F38: F | H38: 100 | I38: Bontrager ATB PN 220028 Select Disc | J38: 2002-02-13 | K38: dcg
A39: 2.5 | B39: 58 | C39: 34.4 | D39: 58 | E39: 20.4 | F39: R | H39: 135 | I39: Bontrager ATB PN 220029 Select Disc | J39: 2002-02-13 | K39: dcg
A40: 2.5 | B40: 42 | C40: 32.75 | D40: 42 | E40: 32.75 | F40: F | H40: 100 | I40: Bontrager ATB PN 220196 Race by Formula (sealed bearings) | J40: 2002-02-22 | K40: DGR
A41: 2.5 | B41: 45 | C41: 38.45 | D41: 58 | E41: 20.25 | F41: R | G41: 8,9 | H41: 135 | I41: Bontrager ATB PN 220197 Race by Formula (sealed bearings) | J41: 2002-06-06 | K41: DGR
A42: 2.5 | B42: 58 | C42: 16.7 | D42: 45 | E42: 27.2 | F42: F | H42: 100 | I42: Bontrager ATB PN 220200 Race Disc by Formula | J42: 2002-01-02 | K42: dcg
A43: 2.5 | B43: 58 | C43: 33.85 | D43: 58 | E43: 20.25 | F43: R | H43: 135 | I43: Bontrager ATB PN 220201 Race Disc by Formula | J43: 2002-01-02 | K43: dcg
A44: 2.5 | B44: 38 | C44: 34.05 | D44: 38 | E44: 34.05 | F44: F | H44: 100 | I44: Bontrager ATB PN 220628 Select | J44: 2002-02-14 | K44: dcg
A45: 2.5 | B45: 45 | C45: 33.25 | D45: 45 | E45: 20.25 | F45: R | H45: 135 | I45: Bontrager ATB PN 220629 Select | J45: 2002-02-14 | K45: dcg
A46: 2.5 | B46: 44 | C46: 39 | D46: 53 | E46: 20.5 | F46: R | H46: 135 | I46: Bontrager ATB PN 220864 Race Lite by DT | J46: 2002-01-07 | K46: DGR
A47: 2.5 | B47: 44 | C47: 36.5 | D47: 53 | E47: 23 | F47: R | H47: 130 | I47: Bontrager ATB PN 220864 Race Lite by DT, 130mm | J47: 2002-03-12 | K47: DGR
A48: 2.5 | B48: 45 | C48: 38.5 | D48: 58 | E48: 20.2 | F48: R | H48: 135 | I48: Bontrager ATB PN 220865 Race Modified by DT Swiss (Onyx) | J48: 2001-12-31 | K48: dcg
A49: 2.5 | B49: 40.5 | C49: 37.4 | D49: 40.5 | E49: 37.4 | F49: F | H49: 100 | I49: Bontrager ATB PN 220866 Race Lite by DT | J49: 2002-02-14 | K49: dcg
A50: 2.5 | B50: 38 | C50: 35 | D50: 38 | E50: 35 | F50: F | H50: 100 | I50: Bontrager ATB PN 220867 Race Modified by DT Swiss (Onyx) | J50: 2001-12-31 | K50: dcg
A51: 2.5 | B51: 38 | C51: 35 | D51: 38 | E51: 35 | F51: F | H51: 100 | I51: Bontrager ATB PN 230044 sealed bearings | J51: 2002-03-12 | K51: DGR
A52: 2.5 | B52: 45 | C52: 36.25 | D52: 58 | E52: 22.25 | F52: F | H52: 100 | I52: Bontrager ATB PN 230515 sealed bearings disc | J52: 2002-11-13 | K52: DGR
A53: 2.5 | B53: 58 | C53: 33.85 | D53: 58 | E53: 20.25 | F53: R | H53: 135 | I53: Bontrager ATB PN 230516 sealed bearings disc | J53: 2003-10-14 | K53: DGR
A54: 2.5 | B54: 58 | C54: 22.4 | D54: 46 | E54: 35.35 | F54: F | H54: 100 | I54: Bontrager ATB PN 240141 Disc, Team | J54: 2003-07-22 | K54: dcg
A55: 2.5 | B55: 58 | C55: 34 | D55: 46 | E55: 19.45 | F55: R | G55: 9,10 | H55: 135 | I55: Bontrager ATB PN 240175 Disc, Team | J55: 2003-07-22 | K55: dcg
A56: 2.5 | B56: 47 | C56: =21+3.5/2 -> 22.75 | D56: 40 | E56: =31.66+3.5/2 -> 33.41 | F56: F | H56: 100 | I56: Bontrager ATB PN 242146 Race X Lite centerlock | J56: 2004-03-08 | K56: DGR
A57: 2.5 | B57: 47 | C57: =135/2-36.8-3.5/2 -> 28.95 | D57: 47 | E57: =135/2-44.6+3.5/2 -> 24.65 | F57: R | H57: 135 | I57: Bontrager ATB PN 242147 Race X Lite centerlock | J57: 2004-03-08 | K57: DGR
A58: 2.6 | B58: 45 | C58: =58.9-20.3 -> 38.6 | D58: 58 | E58: =135/2-40.5-5-3.5/2 -> 20.25 | F58: R | G58: 8,9 | H58: 135 | I58: Bontrager ATB PN 990704 Yellow or red seals | J58: 2002-04-12 | K58: DGR
A59: 2.5 | B59: 45 | C59: 34.25 | D59: 45 | E59: 19.75 | F59: R | G59: 8,9 | H59: 135 | I59: Bontrager ATB PN Prototype LB/4 "XT class" | J59: 2002-03-12 | K59: DGR
A60: 2.5 | B60: 40 | C60: 37.6 | D60: 40 | E60: 37.6 | F60: F | H60: 100 | I60: Bontrager ATB Race X-Lite by Chris King
A61: 2.5 | B61: 44 | C61: =135/2-31.5 -> 36 | D61: 53 | E61: =135/2-46.3 -> 21.2 | F61: R | G61: 8,9 | H61: 135 | I61: Bontrager ATB Race X-Lite by Chris King | J61: 2002-01-09 | K61: DGR
A62: 2.5 | B62: 47 | C62: 23 | D62: 40 | E62: 34.2 | F62: F | H62: 100 | I62: Bontrager PN 242146 Race X Lite disc | J62: 2003-05-23 | K62: DGR
A63: 2.5 | B63: 47 | C63: 33 | D63: 47 | E63: 21.25 | F63: R | G63: 8,9 | H63: 135 | I63: Bontrager PN 242146 Race X Lite disc | J63: 2003-05-23 | K63: DGR
A64: =1.35*2 -> 2.7 | B64: 77.8 | C64: =130/2-32.5 -> 32.5 | D64: 63 | E64: =130/2-48 -> 17 | F64: R | G64: 8,9 | H64: 130 | I64: Bontrager Power-tap 16H hi/lo proto. Even spacing. Use 1x. | J64: 2002-05-28 | K64: DGR
A65: =0.1*25.4 -> 2.54 | B65: 78 | C65: =130/2-32 -> 33 | D65: 66 | E65: =130/2-45 -> 20 | F65: R | G65: 8,9 | H65: 130 | I65: Bontrager Power-tap 16H hi/lo proto. Paired. Calc1.33x, build1x. | J65: 2002-08-31 | K65: DGR
A66: 2.5 | B66: 78 | C66: =130/2-33 -> 32 | D66: 66 | E66: =130/2-47.5 -> 17.5 | F66: R | G66: 8,9 | H66: 130 | I66: Bontrager Power-tap 24H hi/lo proto. Paired. Calc1.25x, build1x. | J66: 2002-08-31 | K66: DGR
A67: 2.5 | B67: =31.8-2.5 -> 29.3 | C67: 34.9 | D67: 47 | E67: 17.25 | F67: R | G67: 8,9 | H67: 130 | I67: Bontrager Road 240097,8 proto | J67: 2003-02-24 | K67: DGR
A68: 2.5 | B68: 47 | C68: =31.3-3.5/2 -> 29.55 | D68: 47 | E68: =19.3-3.5/2 -> 17.55 | F68: R | H68: 130 | I68: Bontrager Road PN 220212 Race X-Lite. | J68: 2002-12-26 | K68: DGR
A69: 2.5 | B69: 38 | C69: 33.45 | D69: 38 | E69: 33.45 | F69: F | H69: 100 | I69: Bontrager Road PN 220213 Race Lite. Radial only. | J69: 2002-02-07 | K69: DGR
A70: 2.5 | B70: 47 | C70: =31.7-3.5/2 -> 29.95 | D70: 47 | E70: =19.8-3.5/2 -> 18.05 | F70: R | H70: 130 | I70: Bontrager Road PN 220271 Race Lite. | J70: 2002-12-26 | K70: DGR
A71: 2.5 | B71: 47 | C71: 30 | D71: 47 | E71: 17 | F71: R | G71: 8,9 | H71: 130 | I71: Bontrager Road PN 220407 Select | J71: 2002-08-30 | K71: DGR
A72: 2.5 | B72: 38 | C72: =68.1/2 -> 34.05 | D72: 38 | E72: =68.1/2 -> 34.05 | F72: F | H72: 100 | I72: Bontrager Road PN 220622 Select | J72: 2002-09-18 | K72: DGR
A73: 2.5 | B73: 38 | C73: 34.2 | D73: 38 | E73: 34.2 | F73: F | H73: 100 | I73: Bontrager Road PN 220969 RXL Aero. Radial only. | J73: 2002-02-18 | K73: dcg
A74: 2.5 | B74: 47 | C74: =32.15+1 -> 33.15 | D74: 47 | E74: =18.3+1 -> 19.3 | F74: R | G74: 8,9 | H74: 130 | I74: Bontrager Road PN 220970 RXL Aero. Use 1.333 cross. | J74: 2002-01-25 | K74: DGR
A75: 2.5 | B75: 47 | C75: 30.75 | D75: 47 | E75: 17.25 | F75: R | G75: 8,9 | H75: 130 | I75: Bontrager Road PN 221088 Race Lite Campy. Use 2.25 cross | J75: 2002-02-27 | K75: DGR
A76: 2.7 | B76: 60 | C76: =31.35-3.5/2 -> 29.6 | D76: 60 | E76: =26.35-3.5/2 -> 24.6 | F76: R | G76: 8,9 | H76: 145 | I76: Bontrager Road PN 230036 Race Lite Tandem. Use 2.25 cross. | J76: 2002-12-03 | K76: DGR
A77: 2.7 | B77: 60 | C77: 35.45 | D77: 60 | E77: 35.45 | F77: F | H77: 100 | I77: Bontrager Road PN 230037 Race Lite Tandem. Use 2.25 cross. | J77: 2002-02-24 | K77: DGR
A78: 2.5 | B78: 38 | C78: 32.3 | D78: 38 | E78: 32.3 | F78: F | H78: 100 | I78: Bontrager Road PN 230046 Race Lite. Radial only. | J78: 2002-03-09 | K78: DGR
A79: 2.5 | B79: 38 | C79: 34.05 | D79: 38 | E79: 34.05 | F79: F | H79: 100 | I79: Bontrager Road PN 230291 Formula RXL 28H standard spacing | J79: 2002-06-03 | K79: DCG
A80: =1.35*2 -> 2.7 | B80: 77.8 | C80: 30.02 | D80: =38.9*2 -> 77.8 | E80: 17.64 | F80: R | G80: 8,9 | H80: 130 | I80: Bontrager Road PN 230416 Power Tap 16H. Use 1x. | J80: 2002-05-28 | K80: DGR
A81: 2.5 | B81: 47 | C81: =31.8-3.5/2 -> 30.05 | D81: 47 | E81: =19.8-3.5/2 -> 18.05 | F81: R | G81: 8,9 | H81: 130 | I81: Bontrager Road PN 230849, RXL road | J81: 2003-06-10 | K81: DGR
A82: 2.5 | B82: 38 | C82: =(100/2)-13.4-(3.5/2) -> 34.85 | D82: 38 | E82: =C82 -> 34.85 | F82: F | G82: 8,9 | H82: 100 | I82: Bontrager Road PN 230850, RXL Aero | J82: 2003-06-05 | K82: DCG
A83: 2.5 | B83: 47 | C83: =32.7+1 -> 33.7 | D83: 47 | E83: =18.8+1 -> 19.8 | F83: R | G83: 8,9 | H83: 130 | I83: Bontrager Road PN 230851 RXL Aero. Use 1.333 cross. | J83: 2002-12-03 | K83: DGR
A84: 2.5 | B84: =35.8-2.5 -> 33.3 | C84: =84.1/2+1 -> 43.05 | D84: =35.8-2.5 -> 33.3 | E84: =84.1/2+1 -> 43.05 | F84: F | H84: 100 | I84: Bontrager Road PN 240001 prototype 122g | J84: 2002-05-20 | K84: DGR
A85: 0 | B85: 39 | C85: 37.5 | D85: 39 | E85: 37.5 | F85: F | H85: 100 | I85: Bontrager Road PN 240036 Team climbing ft hub | J85: 2003-11-07 | K85: dcg
A86: 2.5 | B86: 30.56 | C86: 36.5 | D86: 47 | E86: =19.8-(3.55/2) -> 18.025 | F86: R | G86: 9,10 | H86: 130 | I86: Bontrager Road PN 240097 RXXXL from DT | J86: 2004-03-05 | K86: dcg
A87: 2.5 | B87: =31.8-2.5 -> 29.3 | C87: 34.9 | D87: 47 | E87: 17.25 | F87: R | G87: 8,9 | H87: 130 | I87: Bontrager Road PN 240097,8 proto | J87: 2003-02-24 | K87: DGR
A88: 2.5 | B88: 47 | C88: 30.25 | D88: 47 | E88: 17.75 | F88: R | G88: 8,9 | H88: 130 | I88: Bontrager Road PN 240134 Race. | J88: 2003-07-07 | K88: DGR
A89: 2.5 | B89: 47 | C89: =30.25-(145-130)/2 -> 22.75 | D89: 47 | E89: =17.75+(145-130)/2 -> 25.25 | F89: R | G89: 8,9 | H89: 145 | I89: Bontrager Road PN 240134 Race. Converted to 145 | J89: 2003-07-07 | K89: DGR
A90: 0 | B90: 28.8 | C90: 39.7 | D90: 28.8 | E90: 39.7 | F90: F | H90: 100 | I90: Bontrager Road PN 240144 proto | J90: 2003-02-24 | K90: DGR
A91: 2.5 | B91: 29.1 | C91: 38.07 | D91: =B91 -> 29.1 | E91: =C91 -> 38.07 | F91: F | H91: 100 | I91: Bontrager Road PN 240144 RXXXL from DT | J91: 2004-03-05 | K91: dcg
A92: 2.5 | B92: 47 | C92: 33.7 | D92: 47 | E92: 19.5 | F92: R | G92: 8,9 | H92: 130 | I92: Bontrager Road PN 240441 RXL Aero. Use 1.333 cross. | J92: 2003-06-10 | K92: DGR
A93: 2.5 | B93: 38 | C93: 34.05 | D93: 38 | E93: 34.05 | F93: F | H93: 100 | I93: Bontrager Road PN 240603 Race Lite. Radial or cross ok. | J93: 2003-07-07 | K93: DGR
A94: 0 | B94: 29.1 | C94: 38.3 | D94: 29.1 | E94: 38.3 | F94: F | G94: 9,10 | H94: 100 | I94: Bontrager Road PN 242220 flangless RXXXL | J94: 2003-05-20 | K94: DCG
A95: 2.5 | B95: 30.6 | C95: 37 | D95: 47 | E95: 16.75 | F95: R | G95: 9,10 | H95: 130 | I95: Bontrager Road PN 242221 flangless RXXXL - for DS calcs | J95: 2003-05-20 | K95: DCG
A96: 0 | B96: 30.6 | C96: 37 | D96: 47 | E96: 16.75 | F96: F | G96: 9,10 | H96: 100 | I96: Bontrager Road PN 242221 flangless RXXXL - for NDS calcs | J96: 2003-05-20 | K96: DCG
A97: 2.6 | B97: 47 | C97: 30.8 | D97: 47 | E97: 26.8 | F97: R | G97: 9,10 | H97: 145 | I97: Bontrager Road PN 244144 tandem low flange by Formula | J97: 2005-02-20 | K97: DGR
A98: 0 | B98: 28.2 | C98: 38.1 | D98: 28.2 | E98: 38.1 | F98: F | H98: 100 | I98: Bontrager Road PN xxxxxx prototype carbon shell | J98: 2003-04-17 | K98: DCG
A99: 2.5 | B99: 30.9 | C99: 33.8 | D99: 47 | E99: 18 | F99: R | G99: 9,10 | H99: 130 | I99: Bontrager Road PN xxxxxx prototype carbon shell | J99: 2003-04-17 | K99: DCG
A100: 2.5 | B100: 47 | C100: 33.3 | D100: 47 | E100: 33.3 | F100: R | G100: 1 | H100: 120 | I100: Bontrager Track PN 240007 | J100: 2003-07-24 | K100: DGR
A101: 2.5 | B101: 38 | C101: 34.05 | D101: 38 | E101: 34.05 | F101: F | H101: 100 | I101: Bontrager Track PN 240008 | J101: 2003-07-24 | K101: DGR
A102: 2.4 | B102: 57.5 | C102: 25 | D102: 57.5 | E102: 21.5 | F102: R | H102: 135 | I102: Brave Monster 48-hole BMX freehub 8/9 cogs shimano-compatible | J102: 2006-12-02 | K102: Per Eric Rosén <per@rosnix.net>
A103: 2.4 | B103: 42.5 | C103: 36.5 | D103: 42.5 | E103: 36.5 | F103: F | H103: 100 | I103: Bullseye
A104: 2.4 | B104: 42.5 | C104: 38 | D104: 42.5 | E104: 21.5 | F104: R | G104: 6 | H104: 126 | I104: Bullseye 126mm 6speed
A105: 2.4 | B105: 42.5 | C105: 40 | D105: 42.5 | E105: 20.5 | F105: R | G105: 7 | H105: 130 | I105: Bullseye 130mm 7speed
A106: 2.4 | B106: 53 | C106: 36.5 | D106: 53 | E106: 36.5 | F106: F | H106: 100 | I106: Bullseye tandem
A107: 2.4 | B107: 53 | C107: 26 | D107: 53 | E107: 26 | F107: R | H107: 140 | I107: Bullseye tandem
A108: 2.3 | B108: 39 | C108: 34 | D108: 39 | E108: 34 | F108: F | H108: 100 | I108: Campagnolo 1980's, 90's Chorus, C-Record, Athena low flange
A109: 2.4 | B109: 38.5 | C109: 34.1 | D109: 38.5 | E109: 34.1 | F109: F | H109: 100 | I109: Campagnolo 1999+ Athena, Veloce, Mirage | J109: 2002-03-01 | K109: www.campagnolo.com
A110: 2.4 | B110: 44 | C110: 36.5 | D110: 44 | E110: 16.7 | F110: R | G110: 9 | H110: 130 | I110: Campagnolo 1999+ Athena, Veloce, Mirage | J110: 2002-03-01 | K110: www.campagnolo.com
A111: 2.7 | B111: 40 | C111: 33.6 | D111: 40 | E111: 33.6 | F111: F | H111: 100 | I111: Campagnolo 1999+ Avanti | J111: 2002-03-01 | K111: www.campagnolo.com
A112: 2.4 | B112: 44 | C112: 36.5 | D112: 44 | E112: 16.7 | F112: R | G112: 8 | H112: 130 | I112: Campagnolo 1999+ Avanti | J112: 2002-03-01 | K112: www.campagnolo.com
A113: 2.4 | B113: 44.5 | C113: 36 | D113: 44.5 | E113: 17 | F113: R | G113: 8 | H113: 130 | I113: Campagnolo 8-speed cassette | J113: 2002-03-01 | K113: www.campagnolo.com
A114: 2.3 | B114: 67 | C114: 33 | D114: 67 | E114: 24 | F114: R | G114: 5 | H114: 120 | I114: Campagnolo all 120mm hi-flange models
A115: 2.3 | B115: 67 | C115: 36 | D115: 67 | E115: 21 | F115: R | G115: 6 | H115: 126 | I115: Campagnolo all 126mm hi-flange models
A116: 2.3 | B116: 67 | C116: 34 | D116: 67 | E116: 34 | F116: F | H116: 100 | I116: Campagnolo all hi-flange models
A117: 2.3 | B117: 44 | C117: 37 | D117: 44 | E117: 20 | F117: R | G117: 7 | H117: 127 | I117: Campagnolo Athena, Chorus, Nuovo Record low flange
A118: 2.4 | B118: 44.5 | C118: 35.5 | D118: 44.5 | E118: 18 | F118: R | G118: 8 | H118: 135 | I118: Campagnolo Centaur 8 spd cassette
A119: 2.4 | B119: 44.5 | C119: 36 | D119: 44.5 | E119: 20.5 | F119: R | G119: 7 | H119: 130 | I119: Campagnolo Centaur, Euclid
A120: 2.4 | B120: 39 | C120: 35.4 | D120: 39 | E120: 35.4 | F120: F | H120: 100 | I120: Campagnolo Chorus, Daytona OS | J120: 2002-03-01 | K120: www.campagnolo.com
A121: 2.3 | B121: 44.5 | C121: 36 | D121: 44.5 | E121: 21 | F121: R | G121: 6 | H121: 126 | I121: Campagnolo C-Record low flange
A122: 2.3 | B122: 44 | C122: 33 | D122: 67 | E122: 24 | F122: R | G122: 5 | H122: 120 | I122: Campagnolo Hi-Lo
A123: 2.3 | B123: 38.5 | C123: 35 | D123: 38.5 | E123: 35 | F123: F | H123: 100 | I123: Campagnolo Nuovo Record low flange
A124: 2.7 | B124: 44 | C124: 34 | D124: 44 | E124: 25 | F124: R | G124: 5 | H124: 120 | I124: Campagnolo Record | J124: 2007-02-11 | K124: "L Travers" <lat7575@swbell.net>
A125: 2.4 | B125: 39 | C125: 35.35 | D125: 39 | E125: 35.4 | F125: F | H125: 100 | I125: Campagnolo Record OS | J125: 2002-03-01 | K125: www.campagnolo.com
A126: 2.4 | B126: 44 | C126: 36.76 | D126: 46 | E126: 16.8 | F126: R | G126: 9,10 | H126: 130 | I126: Campagnolo Record, Chorus, Daytona OS | J126: 2002-03-01 | K126: www.campagnolo.com
A127: 2.3 | B127: 65 | C127: 31.5 | D127: 65 | E127: 31.5 | F127: F | H127: 100 | I127: Campagnolo tandem
A128: 2.4 | B128: 65 | C128: 28 | D128: 65 | E128: 28 | F128: R | G128: 8 | H128: 140 | I128: Campagnolo tandem cassette
A129: 2.4 | B129: 67 | C129: 35 | D129: 67 | E129: 30 | F129: R | G129: 1 | H129: 120 | I129: Campagnolo track hi-flange C Record
A130: 2.3 | B130: 67 | C130: 44 | D130: 67 | E130: 31 | F130: R | G130: 1 | I130: Campagnolo track hi-flange Nuovo Record
A131: 2.3 | B131: 44 | C131: 44.5 | D131: 44 | E131: 31.5 | F131: R | G131: 1 | H131: 120 | I131: Campagnolo track low flange
A132: 2.3 | B132: 43.5 | C132: 39.9 | D132: 43.5 | E132: 14.45 | F132: R | H132: 130 | I132: Cannondale by DT Swiss | J132: 2001-12-29 | K132: www.dtswiss.com
A133: 2.3 | B133: 43.5 | C133: 37.4 | D133: 43.5 | E133: 19.95 | F133: R | H133: 135 | I133: Cannondale by DT Swiss | J133: 2001-12-29 | K133: www.dtswiss.com
A134: 2.5 | B134: 57 | C134: 35 | D134: 45 | E134: 19.2 | F134: R | H134: 135 | I134: Cannondale disc | J134: 2001-12-29 | K134: www.dtswiss.com
A135: 2.5 | B135: 58 | C135: 18.35 | D135: 45 | E135: 31.56 | F135: F | H135: none | I135: Cannondale Lefty disc | J135: 2002-02-14 | K135: charlieb@attbi.com
A136: 2.6 | B136: 52.6 | C136: 37.5 | D136: 52.6 | E136: 16.6 | F136: R | G136: 8,9 | H136: 135 | I136: Cannondale Moto120 | J136: 2001-10-26 | K136: Cannondale Tech Support
A137: 2.3 | B137: 40 | C137: 34 | D137: 40 | E137: 34 | F137: F | H137: 100 | I137: Chris King BMX
A138: 2.3 | B138: 44 | C138: 36 | D138: 53 | E138: 21 | F138: R | G138: 8 | H138: 135 | I138: Chris King cassette MTB | J138: 1905-06-23 | K138: www.chrisking.com
A139: 2.3 | B139: 44 | C139: 38.5 | D139: 53 | E139: 18.5 | F139: R | G139: 8 | H139: 130 | I139: Chris King cassette road | J139: 1905-06-23 | K139: www.chrisking.com
A140: 2.3 | B140: 44 | C140: 33.5 | D140: 53 | E140: 23.5 | F140: R | G140: 8 | H140: 140 | I140: Chris King Classic 140mm | J140: 1905-06-23 | K140: www.chrisking.com
A141: 2.3 | B141: 40 | C141: 34 | D141: 40 | E141: 34 | F141: F | H141: 100 | I141: Chris King Classic front narrow
A142: 2.3 | B142: 40 | C142: 37.5 | D142: 40 | E142: 37.5 | F142: F | H142: 100 | I142: Chris King Classic front wide
A143: 2.3 | B143: 44 | C143: 36 | D143: 53 | E143: 21 | F143: R | G143: 8 | H143: 135 | I143: Chris King Classic mountain | J143: 1905-06-23 | K143: www.chrisking.com
A144: 2.3 | B144: 44 | C144: 38.5 | D144: 53 | E144: 18.5 | F144: R | G144: 8 | H144: 130 | I144: Chris King Classic road/cross | J144: 1905-06-23 | K144: www.chrisking.com
A145: 2.5 | B145: 57.6 | C145: 23.1 | D145: 57.6 | E145: 31.2 | F145: F | H145: 110 | I145: Chris King Disc 20mm
A146: 2.5 | B146: 57.6 | C146: 22.5 | D146: 57.6 | E146: 30.4 | F146: F | H146: 100 | I146: Chris King Disc ISO | J146: 2002-03-05 | K146: http://www.chrisking.com/specs/disc_specs.html
A147: 2.5 | B147: 57.6 | C147: 33.9 | D147: 57.6 | E147: 20.1 | F147: R | G147: 8,9 | H147: 135 | I147: Chris King Disc ISO | J147: 2002-03-05 | K147: http://www.chrisking.com/specs/disc_specs.html
A148: 2.5 | B148: 53 | C148: 33.7 | D148: 53 | E148: 33.7 | F148: R | G148: 1 | H148: 135 | I148: Chris King Disc Single Speed | J148: 2002-08-06 | K148: Chris King manual
A149: 2.5 | B149: 53 | C149: 34.2 | D149: 53 | E149: 32 | F149: R | G149: 1 | H149: 135 | I149: Chris King Disc Single Speed | J149: 2004-11-13 | K149: http://www.chrisking.com/specs/hubs_all.html
A150: 2.4 | B150: 53 | C150: 23 | D150: 53 | E150: 31.5 | F150: F | H150: 100 | I150: Chris King Disc Universal
A151: 2.3 | B151: 53 | C151: 34 | D151: 53 | E151: 21 | F151: R | G151: 8,9 | H151: 135 | I151: Chris King Disc Universal 135mm | J151: 1905-06-23 | K151: www.chrisking.com
A152: 2.3 | B152: 53 | C152: 31.5 | D152: 53 | E152: 23.5 | F152: R | G152: 8 | H152: 140 | I152: Chris King Disc Universal 140mm | J152: 1905-06-23 | K152: www.chrisking.com
A153: 2.3 | B153: 53 | C153: 29 | D153: 53 | E153: 26 | F153: R | G153: 8 | H153: 145 | I153: Chris King Disc Universal 145mm | J153: 1905-06-23 | K153: www.chrisking.com
A154: 2.3 | B154: 40 | C154: 37.5 | D154: 40 | E154: 37.5 | F154: F | H154: 100 | I154: Chris King MTB
A155: 2.3 | B155: 44 | C155: 30 | D155: 53 | E155: 27 | F155: R | G155: 1 | H155: 110 | I155: Chris King Rear BMX | J155: 1905-06-23 | K155: www.chrisking.com
A156: 2.3 | B156: 53 | C156: 34 | D156: 53 | E156: 21 | F156: R | G156: 8 | H156: 135 | I156: Chris King Rear DiscGoTech | J156: 1905-06-23 | K156: www.chrisking.com
A157: 2.3 | B157: 53 | C157: 31.5 | D157: 53 | E157: 23.5 | F157: R | G157: 8 | H157: 140 | I157: Chris King Rear DiscGoTech | J157: 1905-06-23 | K157: www.chrisking.com
A158: 2.5 | B158: 53 | C158: 31.5 | D158: 53 | E158: 23.5 | F158: R | G158: 8 | H158: 140 | I158: Chris King Rear DiscGoTech | J158: 1905-06-23 | K158: www.chrisking.com
A159: 2.3 | B159: 40 | C159: 34 | D159: 40 | E159: 34 | F159: F | H159: 100 | I159: Chris King Road
A160: 2.3 | B160: 53 | C160: 33.7 | D160: 53 | E160: 33.7 | F160: F | H160: 100 | I160: Chris King Single Speed
A161: 2.3 | B161: 53 | C161: 33.7 | D161: 53 | E161: 33.7 | F161: R | G161: 1 | H161: 135 | I161: Chris King Single Speed | J161: 1905-06-23 | K161: www.chrisking.com
A162: 2.3 | B162: 53 | C162: 33.7 | D162: 53 | E162: 33.7 | F162: F | H162: 100 | I162: Chris King Tandem
A163: 2.3 | B163: 53 | C163: 29 | D163: 53 | E163: 26 | F163: R | G163: 8,9 | H163: 145 | I163: Chris King Tandem | J163: 1905-06-23 | K163: www.chrisking.com
A164: 2.3 | B164: 53 | C164: 33.7 | D164: 53 | E164: 33.7 | F164: R | G164: 8,9 | H164: 160 | I164: Chris King Tandem | J164: 1905-06-23 | K164: www.chrisking.com
A165: 2.4 | B165: 39 | C165: 37 | D165: 39 | E165: 37 | F165: F | H165: 100 | I165: CODA
A166: 2.6 | B166: 58 | C166: 37 | D166: 58 | E166: 20 | F166: R | G166: 8,9 | H166: 135 | I166: Coda 900 disc | J166: 2001-10-26 | K166: Cannondale Tech Support
A167: 2.6 | B167: 58 | C167: 20 | D167: 44.5 | E167: 35 | F167: F | H167: 100 | I167: Coda 901 disc
A168: 2.5 | B168: 52 | C168: 18 | D168: 40 | E168: 38 | F168: F | H168: 100 | I168: Coda disc | J168: 2001-12-28 | K168: www.dtswiss.com
A169: 2.5 | B169: 52.7 | C169: 36 | D169: 52.7 | E169: 19 | F169: R | H169: 135 | I169: Coda DT Hugi 98 disc | J169: 2001-12-29 | K169: www.dtswiss.com
A170: 2.6 | B170: 58 | C170: 19 | D170: 45 | E170: 30 | F170: F | H170: 100 | I170: Coda Expert disc
A171: 2.6 | B171: 58 | C171: 35 | D171: 44.5 | E171: 20 | F171: R | G171: 8,9 | H171: 135 | I171: Coda Expert disc | J171: 2001-10-26 | K171: Cannondale Tech Support
A172: 2.6 | B172: 44.5 | C172: 31 | D172: 44.5 | E172: 31 | F172: F | H172: 100 | I172: Coda Expert Non-disc | J172: 2001-10-26 | K172: Cannondale Tech Support
A173: 2.6 | B173: 44.5 | C173: 35.5 | D173: 44.5 | E173: 18.5 | F173: R | G173: 8,9 | H173: 135 | I173: Coda Expert non-disc | J173: 2001-10-26 | K173: Cannondale Tech Support
A174: 2.6 | B174: 44.5 | C174: 38.5 | D174: 44.5 | E174: 14.5 | F174: R | G174: 8,9 | H174: 130 | I174: Coda Expert road | J174: 2001-10-26 | K174: Cannondale Tech Support
A175: 2.6 | B175: 56 | C175: 25 | D175: 62 | E175: 31 | F175: F | H175: 100 | I175: Coda Moto disc | J175: 2001-12-28 | K175: www.dtswiss.com
A176: 2.6 | B176: 63.5 | C176: 31.75 | D176: 53.975 | E176: 26.9748 | F176: R | G176: 1 | I176: CORBIN DUPLEX coaster brake hub model 8
A177: 2.6 | B177: 51 | C177: 19 | D177: 39.5 | E177: 34 | F177: F | H177: 100 | I177: Corratec Carbon disc | J177: 2001-12-28 | K177: www.dtswiss.com
A178: 2.6 | B178: 51 | C178: 30 | D178: 42 | E178: 17 | F178: R | H178: 135 | I178: Corratec Carbon disc | J178: 2001-12-29 | K178: www.dtswiss.com
A179: 2.6 | B179: 55 | C179: 35 | D179: 55 | E179: 35 | F179: F | H179: 100 | I179: Corratec Jumper | J179: 2001-12-28 | K179: www.dtswiss.com
A180: 2.6 | B180: 55 | C180: 35 | D180: 45 | E180: 20 | F180: R | H180: 135 | I180: Corratec Jumper | J180: 2001-12-29 | K180: www.dtswiss.com
A181: 2.6 | B181: 58 | C181: 34.5 | D181: 58 | E181: 34.5 | F181: R | H181: 165 | I181: Danny's 12mm through axle | J181: 2001-12-29 | K181: www.dtswiss.com
A182: 2.5 | B182: 36 | C182: 35 | D182: 36 | E182: 35 | F182: F | H182: 100 | I182: Decathlon by DT Swiss | J182: 2001-12-28 | K182: www.dtswiss.com
A183: 2.5 | B183: 45 | C183: 37.7 | D183: 45 | E183: 16.7 | F183: R | H183: 130 | I183: Decathlon by DT Swiss | J183: 2001-12-29 | K183: www.dtswiss.com
A184: 2.5 | B184: 45 | C184: 35.2 | D184: 45 | E184: 19.2 | F184: R | H184: 135 | I184: Decathlon by DT Swiss | J184: 2001-12-29 | K184: www.dtswiss.com
A185: 2.6 | B185: 38 | C185: 35 | D185: 38 | E185: 35 | F185: F | H185: 100 | I185: Dengler | J185: 2001-12-28 | K185: www.dtswiss.com
A186: 2.4 | B186: 39 | C186: 37.2 | D186: 39 | E186: 37.2 | F186: F | H186: 100 | I186: Dia-Compe Tsali
A187: 2.4 | B187: 41 | C187: 36 | D187: 41 | E187: 36 | F187: F | H187: 100 | I187: DMR Revolver | J187: 2002-10-10 | K187: Scarlett
A188: 2.5 | B188: 58 | C188: 23 | D188: 52 | E188: 34.7 | F188: F | H188: 100 | I188: DT Cerit | J188: 2001-12-28 | K188: www.dtswiss.com
A189: 2.5 | B189: 58 | C189: 33.25 | D189: 52 | E189: 20 | F189: R | H189: 135 | I189: DT Cerit disc | J189: 2001-12-29 | K189: www.dtswiss.com
A190: 2.4 | B190: 36 | C190: 34.95 | D190: 36 | E190: 34.95 | F190: F | H190: 100 | I190: DT Hugi 240 | J190: 2001-12-28 | K190: www.dtswiss.com
A191: 2.4 | B191: 45 | C191: 37.7 | D191: 45 | E191: 16.7 | F191: R | H191: 130 | I191: DT Hugi 240 | J191: 2001-12-29 | K191: www.dtswiss.com
A192: 2.4 | B192: 45 | C192: 35.2 | D192: 45 | E192: 19.2 | F192: R | H192: 135 | I192: DT Hugi 240 | J192: 2001-12-29 | K192: www.dtswiss.com
A193: 2.4 | B193: 45 | C193: 29.8 | D193: 45 | E193: 16.1 | F193: R | H193: 130 | I193: DT Hugi 240 Campy 9,10s | J193: 2001-12-29 | K193: www.dtswiss.com
A194: 2.5 | B194: 58 | C194: 22 | D194: 46 | E194: 34.8 | F194: F | H194: 100 | I194: DT Hugi 240 disc | J194: 2001-12-28 | K194: www.dtswiss.com
A195: 2.5 | B195: 58 | C195: 33.5 | D195: 46 | E195: 19.2 | F195: R | H195: 135 | I195: DT Hugi 240 disc | J195: 2001-12-29 | K195: www.dtswiss.com
A196: 2.6 | B196: 58 | C196: 33.5 | D196: 46.5 | E196: 19.2 | F196: R | H196: 135 | I196: DT Hugi 240 FR | J196: 2001-12-29 | K196: www.dtswiss.com
A197: 2.6 | B197: 58.5 | C197: 25.8 | D197: 58.5 | E197: 25.8 | F197: R | H197: 150 | I197: DT Hugi 240 FR 12mm through axle | J197: 2001-12-29 | K197: www.dtswiss.com
A198: 2.6 | B198: 58.5 | C198: 33.3 | D198: 58.5 | E198: 33.3 | F198: R | H198: 165 | I198: DT Hugi 240 FR 12mm through axle | J198: 2001-12-29 | K198: www.dtswiss.com
A199: 2.4 | B199: 45 | C199: 29.8 | D199: 45 | E199: 16.1 | F199: R | H199: 130 | I199: DT Hugi 240 road | J199: 2001-12-29 | K199: www.dtswiss.com
A200: 2.3 | B200: 45.5 | C200: 39.45 | D200: 45.5 | E200: 17.95 | F200: R | H200: 130 | I200: DT Hugi 95 | J200: 2001-12-29 | K200: www.dtswiss.com
A201: 2.3 | B201: 45.5 | C201: 37.4 | D201: 45.5 | E201: 20.05 | F201: R | H201: 135 | I201: DT Hugi 95 | J201: 2001-12-29 | K201: www.dtswiss.com
... 649 more rows
